[Event "*** Titled Tuesday Blitz"]
[Site "Chess.com"]
[Date "2020.02.04"]
[Round "2"]
[White "GelmanAlexander"]
[Black "Mr_Sinigami"]
[Result "0-1"]
[WhiteElo "2455"]
[BlackElo "2723"]
[TimeControl "180+2"]
[EndTime "9:23:55 PST"]
[Termination "Mr_Sinigami won by resignation"]

1. e4 {[%clk 0:03:01.9]} 1... d5 {[%clk 0:03:00.4]} 2. exd5 {[%clk 0:03:00.2]}
2... Qxd5 {[%clk 0:03:01.6]} 3. Nc3 {[%clk 0:03:00.8]} 3... Qd6 {[%clk
0:03:02.6]} 4. d4 {[%clk 0:02:59.6]} 4... c6 {[%clk 0:03:02.7]} 5. Nf3 {[%clk
0:02:59.7]} 5... Bg4 {[%clk 0:03:03.6]} 6. Be3 {[%clk 0:02:58.5]} 6... Nf6
{[%clk 0:03:04.5]} 7. h3 {[%clk 0:02:59.2]} 7... Bh5 {[%clk 0:03:04.9]} 8. g4
{[%clk 0:02:58]} 8... Bg6 {[%clk 0:03:05.8]} 9. Ne5 {[%clk 0:02:59.3]} 9... Nbd7
{[%clk 0:03:06.8]} 10. f4 {[%clk 0:03:00.4]} 10... e6 {[%clk 0:03:06.4]} 11. a3
{[%clk 0:02:48.9]} 11... Nd5 {[%clk 0:02:46.8]} 12. Nxd5 {[%clk 0:02:46.6]}
12... Qxd5 {[%clk 0:02:44.9]} 13. Rh2 {[%clk 0:02:41.7]} 13... Nxe5 {[%clk
0:02:43]} 14. fxe5 {[%clk 0:02:22.1]} 14... Be7 {[%clk 0:02:36.6]} 15. h4 {[%clk
0:02:11.5]} 15... h5 {[%clk 0:02:28.7]} 16. g5 {[%clk 0:02:12.4]} 16... O-O
{[%clk 0:02:24.8]} 17. Bd3 {[%clk 0:02:09.6]} 17... c5 {[%clk 0:02:20]} 18. c4
{[%clk 0:01:55.7]} 18... Qd7 {[%clk 0:02:13.1]} 19. d5 {[%clk 0:01:47.6]} 19...
exd5 {[%clk 0:02:07]} 20. Bxg6 {[%clk 0:01:47]} 20... fxg6 {[%clk 0:02:08.1]}
21. Qxd5+ {[%clk 0:01:21.2]} 21... Qxd5 {[%clk 0:02:08.4]} 22. cxd5 {[%clk
0:01:23.1]} 22... Rf5 {[%clk 0:02:08.6]} 23. O-O-O {[%clk 0:01:21.1]} 23... Rxe5
{[%clk 0:02:07.2]} 24. Bf4 {[%clk 0:01:16.3]} 24... Re4 {[%clk 0:02:01.1]} 25.
Bc7 {[%clk 0:01:17.3]} 25... Rc8 {[%clk 0:01:38.4]} 26. d6 {[%clk 0:01:16.7]}
26... Bd8 {[%clk 0:01:39.9]} 27. Rf2 {[%clk 0:00:54]} 27... Rxh4 {[%clk
0:01:15.6]} 28. Re1 {[%clk 0:00:26.6]} 28... Bxg5+ {[%clk 0:01:10.9]} 29. Kb1
{[%clk 0:00:23.7]} 29... Rd4 {[%clk 0:01:06.6]} 30. Rg2 {[%clk 0:00:16.3]} 30...
Bf6 {[%clk 0:00:47.1]} 31. Rxg6 {[%clk 0:00:16]} 31... Kf7 {[%clk 0:00:47.6]}
32. Rg2 {[%clk 0:00:15.5]} 32... h4 {[%clk 0:00:47.7]} 33. Rf2 {[%clk 0:00:15]}
33... h3 {[%clk 0:00:44.1]} 34. Re7+ {[%clk 0:00:14.6]} 34... Kg6 {[%clk
0:00:45.3]} 35. d7 {[%clk 0:00:08.2]} 35... Rxc7 {[%clk 0:00:42.3]} 36. d8=Q
{[%clk 0:00:09.4]} 36... Rxd8 {[%clk 0:00:39.3]} 37. Rxc7 {[%clk 0:00:11.3]}
37... Rh8 {[%clk 0:00:33.4]} 38. Rf1 {[%clk 0:00:08.9]} 38... h2 {[%clk
0:00:30.1]} 39. Rh1 {[%clk 0:00:10.1]} 39... Bd4 {[%clk 0:00:30.8]} 40. Rxb7
{[%clk 0:00:10.3]} 40... Kf6 {[%clk 0:00:27.9]} 41. Rxa7 {[%clk 0:00:10.8]}
41... g5 {[%clk 0:00:29.4]} 42. Ra6+ {[%clk 0:00:07.4]} 42... Kf5 {[%clk
0:00:30.5]} 43. Ra7 {[%clk 0:00:08.6]} 43... g4 {[%clk 0:00:31.5]} 44. Rf7+
{[%clk 0:00:09.7]} 44... Ke4 {[%clk 0:00:28.6]} 45. a4 {[%clk 0:00:10.8]} 45...
g3 {[%clk 0:00:28.1]} 46. a5 {[%clk 0:00:10.5]} 46... g2 {[%clk 0:00:28.6]} 47.
Re1+ {[%clk 0:00:11.7]} 47... Kd5 {[%clk 0:00:27.5]} 0-1

[Event "*** Titled Tuesday Blitz"]
[Site "Chess.com"]
[Date "2020.02.04"]
[Round "2"]
[White "vladimirdamjanovic"]
[Black "platy3"]
[Result "0-1"]
[WhiteElo "2616"]
[BlackElo "2907"]
[TimeControl "180+2"]
[EndTime "9:23:59 PST"]
[Termination "platy3 won on time"]

1. d4 {[%clk 0:03:01.9]} 1... Nf6 {[%clk 0:03:00.3]} 2. c4 {[%clk 0:03:01.2]}
2... e6 {[%clk 0:03:01.7]} 3. Nf3 {[%clk 0:03:02.2]} 3... d5 {[%clk 0:03:02.7]}
4. Nc3 {[%clk 0:03:03]} 4... Bb4 {[%clk 0:02:56.8]} 5. Bg5 {[%clk 0:02:58.5]}
5... h6 {[%clk 0:02:53.1]} 6. Bxf6 {[%clk 0:02:59.3]} 6... Qxf6 {[%clk
0:02:54.5]} 7. Qa4+ {[%clk 0:03:00.2]} 7... Nc6 {[%clk 0:02:55.1]} 8. cxd5
{[%clk 0:03:01.8]} 8... exd5 {[%clk 0:02:55.7]} 9. e3 {[%clk 0:03:01.9]} 9...
O-O {[%clk 0:02:55.6]} 10. Be2 {[%clk 0:03:02.6]} 10... Qg6 {[%clk 0:02:33.4]}
11. O-O {[%clk 0:02:58.3]} 11... Bxc3 {[%clk 0:02:09.1]} 12. bxc3 {[%clk
0:02:58.1]} 12... Bh3 {[%clk 0:02:10.6]} 13. Ne1 {[%clk 0:02:50.8]} 13... Ne7
{[%clk 0:01:52.5]} 14. Qc2 {[%clk 0:02:38.9]} 14... Bf5 {[%clk 0:01:50.6]} 15.
Bd3 {[%clk 0:02:37.2]} 15... Rfc8 {[%clk 0:01:46.2]} 16. Rb1 {[%clk 0:02:28.7]}
16... b6 {[%clk 0:01:45.6]} 17. Bxf5 {[%clk 0:02:24.5]} 17... Nxf5 {[%clk
0:01:46.1]} 18. Nf3 {[%clk 0:02:12.6]} 18... c5 {[%clk 0:01:38.1]} 19. Ne5
{[%clk 0:02:07.8]} 19... Qe6 {[%clk 0:01:37.9]} 20. Qa4 {[%clk 0:01:53.9]} 20...
Nd6 {[%clk 0:01:38.8]} 21. Rfd1 {[%clk 0:01:45.1]} 21... Ne4 {[%clk 0:01:35.6]}
22. Rbc1 {[%clk 0:01:27.3]} 22... Rc7 {[%clk 0:01:28.8]} 23. c4 {[%clk
0:01:00.3]} 23... cxd4 {[%clk 0:01:28.3]} 24. exd4 {[%clk 0:00:59.9]} 24... dxc4
{[%clk 0:01:13.1]} 25. Re1 {[%clk 0:00:46.1]} 25... Qf5 {[%clk 0:01:08.1]} 26.
Qc2 {[%clk 0:00:26.3]} 26... Nd6 {[%clk 0:01:08.8]} 27. Qxf5 {[%clk 0:00:27.3]}
27... Nxf5 {[%clk 0:01:10.7]} 28. Rxc4 {[%clk 0:00:28.1]} 28... Rxc4 {[%clk
0:01:11.3]} 29. Nxc4 {[%clk 0:00:29.3]} 29... Rc8 {[%clk 0:01:12.5]} 30. Ne3
{[%clk 0:00:16.1]} 30... Nxd4 {[%clk 0:01:12.6]} 31. h4 {[%clk 0:00:16.6]} 31...
Rc5 {[%clk 0:00:59.3]} 32. Rd1 {[%clk 0:00:16.5]} 32... Ne6 {[%clk 0:00:57.5]}
33. Rd7 {[%clk 0:00:14.7]} 33... Ra5 {[%clk 0:00:58.1]} 34. Rd2 {[%clk
0:00:14.7]} 34... g6 {[%clk 0:00:58.3]} 35. g3 {[%clk 0:00:10]} 35... Kg7 {[%clk
0:00:56]} 36. Nc4 {[%clk 0:00:10.2]} 36... Rc5 {[%clk 0:00:55.2]} 37. Ne3 {[%clk
0:00:05.9]} 37... Rc3 {[%clk 0:00:40.5]} 38. Kg2 {[%clk 0:00:03.6]} 38... Nc5
{[%clk 0:00:40.8]} 39. Kf3 {[%clk 0:00:03.3]} 39... Kf6 {[%clk 0:00:32.1]} 40.
Kf4 {[%clk 0:00:03.5]} 40... Ke6 {[%clk 0:00:30]} 41. Ng4 {[%clk 0:00:03.2]}
41... Nd3+ {[%clk 0:00:26.4]} 42. Ke4 {[%clk 0:00:02.7]} 42... Nc5+ {[%clk
0:00:21.5]} 43. Kf4 {[%clk 0:00:03.5]} 43... h5 {[%clk 0:00:18.7]} 44. Ne3
{[%clk 0:00:04.9]} 44... Ra3 {[%clk 0:00:18.3]} 45. Kf3 {[%clk 0:00:03.7]} 45...
Nd3 {[%clk 0:00:18.1]} 46. Rc2 {[%clk 0:00:02.4]} 46... Ne1+ {[%clk 0:00:18.9]}
0-1

[Event "*** Titled Tuesday Blitz"]
[Site "Chess.com"]
[Date "2020.02.04"]
[Round "2"]
[White "ALEXJR20"]
[Black "tunadrol"]
[Result "0-1"]
[WhiteElo "2275"]
[BlackElo "2574"]
[TimeControl "180+2"]
[EndTime "9:24:03 PST"]
[Termination "tunadrol won by resignation"]

1. d4 {[%clk 0:03:01.9]} 1... Nf6 {[%clk 0:02:59.4]} 2. Nf3 {[%clk 0:03:01.2]}
2... d5 {[%clk 0:02:57.3]} 3. Bf4 {[%clk 0:03:01.2]} 3... c5 {[%clk 0:02:58]} 4.
e3 {[%clk 0:03:01.9]} 4... Nc6 {[%clk 0:02:51.6]} 5. c3 {[%clk 0:03:00.9]} 5...
Qb6 {[%clk 0:02:49.2]} 6. Qb3 {[%clk 0:03:00.4]} 6... c4 {[%clk 0:02:47.4]} 7.
Qxb6 {[%clk 0:03:01.4]} 7... axb6 {[%clk 0:02:48.8]} 8. Na3 {[%clk 0:03:02.3]}
8... Ra5 {[%clk 0:02:22.9]} 9. Be2 {[%clk 0:02:54.9]} 9... Bf5 {[%clk
0:02:16.7]} 10. Bd1 {[%clk 0:02:55]} 10... e6 {[%clk 0:02:15.4]} 11. Nc2 {[%clk
0:02:56.3]} 11... b5 {[%clk 0:02:11.1]} 12. a3 {[%clk 0:02:56.3]} 12... Be4
{[%clk 0:01:59.9]} 13. O-O {[%clk 0:02:55.4]} 13... Bd3 {[%clk 0:01:57.8]} 14.
Re1 {[%clk 0:02:54.1]} 14... Ne4 {[%clk 0:01:59.3]} 15. Ne5 {[%clk 0:02:48.7]}
15... f6 {[%clk 0:01:44.3]} 16. Nxc6 {[%clk 0:02:46.9]} 16... bxc6 {[%clk
0:01:46]} 17. f3 {[%clk 0:02:48.8]} 17... Nd2 {[%clk 0:01:40.7]} 18. Nb4 {[%clk
0:02:30.8]} 18... g5 {[%clk 0:01:26.6]} 19. Bc7 {[%clk 0:02:14.1]} 19... Bxb4
{[%clk 0:01:22.7]} 20. cxb4 {[%clk 0:02:10]} 20... Ra7 {[%clk 0:01:22.7]} 21.
Bb6 {[%clk 0:02:03.5]} 21... Ra6 {[%clk 0:01:20.5]} 22. Bc5 {[%clk 0:02:04.9]}
22... Kd7 {[%clk 0:01:19.7]} 23. Rc1 {[%clk 0:01:56.4]} 23... h5 {[%clk
0:01:16.9]} 24. Be2 {[%clk 0:01:35.4]} 24... Nb3 {[%clk 0:01:14.4]} 25. Rc3
{[%clk 0:01:36]} 25... Bxe2 {[%clk 0:01:10.5]} 26. Rxe2 {[%clk 0:01:37.9]} 26...
e5 {[%clk 0:01:06.7]} 27. Rcc2 {[%clk 0:01:30.2]} 27... Raa8 {[%clk 0:01:01.1]}
28. Re1 {[%clk 0:01:28.3]} 28... Nxc5 {[%clk 0:00:56]} 29. bxc5 {[%clk
0:01:26.1]} 29... Rhb8 {[%clk 0:00:54.3]} 30. Rd2 {[%clk 0:01:20.6]} 30... b4
{[%clk 0:00:53.3]} 31. axb4 {[%clk 0:01:21]} 31... Rxb4 {[%clk 0:00:54.1]} 32.
e4 {[%clk 0:01:18.9]} 32... exd4 {[%clk 0:00:52.2]} 33. Rxd4 {[%clk 0:01:19.5]}
33... Rxb2 {[%clk 0:00:45.5]} 34. exd5 {[%clk 0:01:14.5]} 34... Raa2 {[%clk
0:00:46.6]} 35. dxc6+ {[%clk 0:00:47.4]} 35... Kxc6 {[%clk 0:00:45.3]} 36. Rd6+
{[%clk 0:00:46.9]} 36... Kxc5 {[%clk 0:00:39.6]} 37. Rxf6 {[%clk 0:00:48.8]}
37... Rxg2+ {[%clk 0:00:34.4]} 38. Kh1 {[%clk 0:00:49.9]} 38... Rxh2+ {[%clk
0:00:34.4]} 39. Kg1 {[%clk 0:00:50.9]} 39... Rag2+ {[%clk 0:00:31.1]} 40. Kf1
{[%clk 0:00:51.7]} 40... Rf2+ {[%clk 0:00:33]} 41. Kg1 {[%clk 0:00:53]} 41...
Rhg2+ {[%clk 0:00:33.5]} 42. Kh1 {[%clk 0:00:54.1]} 42... c3 {[%clk 0:00:32.9]}
43. Rf8 {[%clk 0:00:35.4]} 43... c2 {[%clk 0:00:32.1]} 44. Rc8+ {[%clk
0:00:36.3]} 44... Kd6 {[%clk 0:00:27.2]} 45. Rc1 {[%clk 0:00:30.2]} 45... h4
{[%clk 0:00:23.1]} 46. Rc4 {[%clk 0:00:21.2]} 46... Rh2+ {[%clk 0:00:17.5]} 47.
Kg1 {[%clk 0:00:21.3]} 47... Rfg2+ {[%clk 0:00:19]} 48. Kf1 {[%clk 0:00:22.5]}
48... h3 {[%clk 0:00:19.6]} 0-1

[Event "*** Titled Tuesday Blitz"]
[Site "Chess.com"]
[Date "2020.02.04"]
[Round "2"]
[White "FelixJoseYnojosa"]
[Black "crescentmoon2411"]
[Result "0-1"]
[WhiteElo "2662"]
[BlackElo "2985"]
[TimeControl "180+2"]
[EndTime "9:24:07 PST"]
[Termination "crescentmoon2411 won by resignation"]

1. e4 {[%clk 0:03:01.9]} 1... c5 {[%clk 0:02:59.3]} 2. c3 {[%clk 0:03:02.5]}
2... Nf6 {[%clk 0:02:58.9]} 3. e5 {[%clk 0:03:03.9]} 3... Nd5 {[%clk 0:03:00.2]}
4. d4 {[%clk 0:03:05.1]} 4... cxd4 {[%clk 0:03:01.6]} 5. cxd4 {[%clk 0:03:07]}
5... d6 {[%clk 0:03:00.9]} 6. Nf3 {[%clk 0:03:06.5]} 6... Nc6 {[%clk 0:03:01.2]}
7. Bc4 {[%clk 0:03:07.5]} 7... Nb6 {[%clk 0:02:52.4]} 8. Bb5 {[%clk 0:03:06.4]}
8... Bd7 {[%clk 0:02:42.7]} 9. Nc3 {[%clk 0:03:00.3]} 9... dxe5 {[%clk 0:02:30]}
10. dxe5 {[%clk 0:02:43.1]} 10... g6 {[%clk 0:02:16.9]} 11. Qe2 {[%clk
0:02:28.2]} 11... Bg7 {[%clk 0:02:16]} 12. h3 {[%clk 0:02:28]} 12... O-O {[%clk
0:02:16]} 13. O-O {[%clk 0:02:22.6]} 13... a6 {[%clk 0:02:15.8]} 14. Bd3 {[%clk
0:02:20]} 14... Be6 {[%clk 0:02:01.5]} 15. Rd1 {[%clk 0:02:01]} 15... Qc7 {[%clk
0:02:01]} 16. Bf4 {[%clk 0:02:00.6]} 16... Rfd8 {[%clk 0:01:43.8]} 17. Rac1
{[%clk 0:01:59.8]} 17... Nd5 {[%clk 0:01:42.8]} 18. Nxd5 {[%clk 0:01:57.3]}
18... Bxd5 {[%clk 0:01:44.7]} 19. Bc4 {[%clk 0:01:28.7]} 19... Bxf3 {[%clk
0:01:30.6]} 20. Qxf3 {[%clk 0:01:27.8]} 20... e6 {[%clk 0:01:29.3]} 21. Re1
{[%clk 0:01:10.6]} 21... Qa5 {[%clk 0:01:13]} 22. a3 {[%clk 0:01:03.9]} 22...
Rac8 {[%clk 0:01:06.5]} 23. b4 {[%clk 0:01:04.5]} 23... Qb6 {[%clk 0:01:02]} 24.
Qg3 {[%clk 0:00:44.8]} 24... Qd4 {[%clk 0:00:58.6]} 25. Kh1 {[%clk 0:00:05.4]}
25... Nxe5 {[%clk 0:00:48.9]} 26. Bxe5 {[%clk 0:00:03.4]} 26... Bxe5 {[%clk
0:00:49.3]} 27. Qxe5 {[%clk 0:00:04.6]} 27... Rxc4 {[%clk 0:00:49.9]} 28. Qxd4
{[%clk 0:00:05.5]} 28... Rdxd4 {[%clk 0:00:48.7]} 29. Rxc4 {[%clk 0:00:05.7]}
29... Rxc4 {[%clk 0:00:50.6]} 30. Rd1 {[%clk 0:00:07.1]} 30... Rc3 {[%clk
0:00:49.9]} 31. a4 {[%clk 0:00:06.1]} 31... Rc4 {[%clk 0:00:47.8]} 32. Rb1
{[%clk 0:00:05.4]} 32... b6 {[%clk 0:00:45]} 33. a5 {[%clk 0:00:05.2]} 33...
bxa5 {[%clk 0:00:45.3]} 34. bxa5 {[%clk 0:00:06]} 34... Ra4 {[%clk 0:00:46]} 35.
Kh2 {[%clk 0:00:07]} 35... Rxa5 {[%clk 0:00:47]} 36. Kg3 {[%clk 0:00:08.3]}
36... Kg7 {[%clk 0:00:43.9]} 37. Rb7 {[%clk 0:00:09.3]} 37... g5 {[%clk
0:00:44.6]} 38. Kg4 {[%clk 0:00:10.2]} 38... Kg6 {[%clk 0:00:45.1]} 39. Kg3
{[%clk 0:00:06.5]} 39... Ra1 {[%clk 0:00:43.7]} 40. Ra7 {[%clk 0:00:06.7]} 40...
a5 {[%clk 0:00:44.9]} 41. Ra6 {[%clk 0:00:07.4]} 41... a4 {[%clk 0:00:46.3]} 42.
Ra5 {[%clk 0:00:09]} 42... a3 {[%clk 0:00:47.1]} 43. Kg4 {[%clk 0:00:10.5]}
43... h5+ {[%clk 0:00:46.4]} 44. Kg3 {[%clk 0:00:11.7]} 44... h4+ {[%clk
0:00:46.4]} 45. Kg4 {[%clk 0:00:11.7]} 45... f5+ {[%clk 0:00:47.9]} 46. Kf3
{[%clk 0:00:13]} 46... Kf6 {[%clk 0:00:49.2]} 47. Ra8 {[%clk 0:00:12.2]} 47...
a2 {[%clk 0:00:49.8]} 48. Ra5 {[%clk 0:00:12.8]} 48... e5 {[%clk 0:00:50.7]} 49.
Ra6+ {[%clk 0:00:13.7]} 49... Ke7 {[%clk 0:00:51.4]} 50. Ra7+ {[%clk 0:00:06.5]}
50... Kd6 {[%clk 0:00:52.1]} 51. Ra6+ {[%clk 0:00:08.1]} 51... Kc5 {[%clk
0:00:52.8]} 52. Ra5+ {[%clk 0:00:09.5]} 52... Kd4 {[%clk 0:00:53.6]} 53. Ra4+
{[%clk 0:00:10.2]} 53... Kc3 {[%clk 0:00:54.7]} 54. Ra5 {[%clk 0:00:06.9]} 54...
e4+ {[%clk 0:00:53.5]} 55. Ke2 {[%clk 0:00:07.7]} 55... g4 {[%clk 0:00:51.6]}
56. Ra8 {[%clk 0:00:06.3]} 56... gxh3 {[%clk 0:00:51.5]} 57. gxh3 {[%clk
0:00:08.2]} 57... f4 {[%clk 0:00:52.8]} 58. Rc8+ {[%clk 0:00:08.4]} 58... Kd4
{[%clk 0:00:53.6]} 59. Rd8+ {[%clk 0:00:09.7]} 59... Kc5 {[%clk 0:00:54.8]} 60.
Rc8+ {[%clk 0:00:10.8]} 60... Kd6 {[%clk 0:00:56]} 61. Rd8+ {[%clk 0:00:11.8]}
61... Kc7 {[%clk 0:00:57]} 62. Ra8 {[%clk 0:00:13.4]} 62... f3+ {[%clk
0:00:57.2]} 63. Kd2 {[%clk 0:00:14.3]} 63... Rf1 {[%clk 0:00:58.5]} 0-1

[Event "*** Titled Tuesday Blitz"]
[Site "Chess.com"]
[Date "2020.02.04"]
[Round "2"]
[White "Kirill_Kopenkin"]
[Black "SabinaFoisor"]
[Result "1-0"]
[WhiteElo "2514"]
[BlackElo "2240"]
[TimeControl "180+2"]
[EndTime "9:24:28 PST"]
[Termination "Kirill_Kopenkin won by resignation"]

1. e4 {[%clk 0:03:01.9]} 1... e5 {[%clk 0:02:58.3]} 2. Nf3 {[%clk 0:03:02.4]}
2... Nc6 {[%clk 0:02:55.5]} 3. Bc4 {[%clk 0:03:03.7]} 3... Bc5 {[%clk
0:02:54.9]} 4. d3 {[%clk 0:03:05.1]} 4... Nf6 {[%clk 0:02:55]} 5. O-O {[%clk
0:03:06.3]} 5... O-O {[%clk 0:02:55.4]} 6. c3 {[%clk 0:03:06.3]} 6... d6 {[%clk
0:02:52.6]} 7. Bb3 {[%clk 0:03:04.9]} 7... a6 {[%clk 0:02:52.6]} 8. Nbd2 {[%clk
0:03:05.5]} 8... Ba7 {[%clk 0:02:51.5]} 9. h3 {[%clk 0:03:06.8]} 9... Be6 {[%clk
0:02:45.9]} 10. Re1 {[%clk 0:03:06.5]} 10... Qd7 {[%clk 0:02:46.6]} 11. Nf1
{[%clk 0:03:05.6]} 11... Bxb3 {[%clk 0:02:33.6]} 12. Qxb3 {[%clk 0:02:57.5]}
12... Ne7 {[%clk 0:02:30.8]} 13. d4 {[%clk 0:02:42.9]} 13... Ng6 {[%clk
0:02:27.5]} 14. Ng3 {[%clk 0:02:40.5]} 14... Rfe8 {[%clk 0:02:13.1]} 15. Bg5
{[%clk 0:02:33.4]} 15... Qe6 {[%clk 0:01:53.3]} 16. Qxb7 {[%clk 0:02:15.2]}
16... Reb8 {[%clk 0:01:32.8]} 17. Qxc7 {[%clk 0:02:10.7]} 17... Rxb2 {[%clk
0:01:16.2]} 18. Be3 {[%clk 0:01:33.3]} 18... Qd7 {[%clk 0:00:35.1]} 19. Qxd7
{[%clk 0:01:15.7]} 19... Nxd7 {[%clk 0:00:37]} 20. Nf5 {[%clk 0:01:17]} 20...
Rc8 {[%clk 0:00:18.7]} 21. Rec1 {[%clk 0:00:57.3]} 21... Bb8 {[%clk 0:00:15.4]}
22. h4 {[%clk 0:00:48.6]} 22... Nf6 {[%clk 0:00:16.3]} 23. Nd2 {[%clk 0:00:35]}
23... h5 {[%clk 0:00:14.2]} 24. f3 {[%clk 0:00:17.6]} 24... d5 {[%clk 0:00:15]}
25. Rab1 {[%clk 0:00:15.4]} 25... Rxb1 {[%clk 0:00:15.6]} 26. Rxb1 {[%clk
0:00:17.3]} 26... dxe4 {[%clk 0:00:17.1]} 27. Nxe4 {[%clk 0:00:18.2]} 27... Nxe4
{[%clk 0:00:17.3]} 28. fxe4 {[%clk 0:00:20.1]} 28... exd4 {[%clk 0:00:18.5]} 29.
Bxd4 {[%clk 0:00:20.5]} 29... Be5 {[%clk 0:00:10.1]} 30. Rb6 {[%clk 0:00:20.7]}
30... Bxd4+ {[%clk 0:00:06.9]} 31. cxd4 {[%clk 0:00:22.6]} 31... Rc2 {[%clk
0:00:04.7]} 32. Rxa6 {[%clk 0:00:18.7]} 32... Nf4 {[%clk 0:00:06]} 33. g3 {[%clk
0:00:20.3]} 33... Ne2+ {[%clk 0:00:05.9]} 34. Kf1 {[%clk 0:00:21.7]} 34... Nc3
{[%clk 0:00:06.7]} 35. a4 {[%clk 0:00:20.9]} 35... Nxe4 {[%clk 0:00:07.1]} 36.
Ke1 {[%clk 0:00:20.2]} 36... Rc3 {[%clk 0:00:06.7]} 37. Ra8+ {[%clk 0:00:09.8]}
37... Kh7 {[%clk 0:00:07.3]} 38. a5 {[%clk 0:00:10.7]} 38... Nxg3 {[%clk
0:00:08.3]} 39. Nd6 {[%clk 0:00:12.1]} 39... Kg6 {[%clk 0:00:06.5]} 40. a6
{[%clk 0:00:12.9]} 40... Rd3 {[%clk 0:00:07.4]} 41. a7 {[%clk 0:00:13.1]} 41...
Ra3 {[%clk 0:00:07.6]} 42. Nb5 {[%clk 0:00:14.2]} 42... Ra1+ {[%clk 0:00:08.2]}
43. Kd2 {[%clk 0:00:14]} 43... Nf5 {[%clk 0:00:09.9]} 44. Rd8 {[%clk 0:00:12.8]}
44... Nxh4 {[%clk 0:00:08.6]} 45. a8=Q {[%clk 0:00:12.7]} 45... Rxa8 {[%clk
0:00:09.7]} 46. Rxa8 {[%clk 0:00:14.6]} 46... Nf3+ {[%clk 0:00:11.1]} 47. Ke3
{[%clk 0:00:15.9]} 47... Ng5 {[%clk 0:00:12.5]} 48. Nd6 {[%clk 0:00:15.6]} 48...
f6 {[%clk 0:00:14]} 49. Ne4 {[%clk 0:00:16.5]} 49... h4 {[%clk 0:00:15.9]} 50.
Nxg5 {[%clk 0:00:17.5]} 50... Kxg5 {[%clk 0:00:17.5]} 51. d5 {[%clk 0:00:15.6]}
51... h3 {[%clk 0:00:18.9]} 52. Rh8 {[%clk 0:00:15.9]} 52... Kf5 {[%clk
0:00:20.1]} 53. Rxh3 {[%clk 0:00:16.1]} 53... Ke5 {[%clk 0:00:20.8]} 54. Rh7
{[%clk 0:00:16.3]} 54... g5 {[%clk 0:00:21.5]} 55. Rd7 {[%clk 0:00:17.1]} 55...
f5 {[%clk 0:00:22.8]} 56. Rd8 {[%clk 0:00:17.9]} 56... f4+ {[%clk 0:00:24.7]}
57. Kf3 {[%clk 0:00:18.7]} 57... Kf6 {[%clk 0:00:24.2]} 58. Kg4 {[%clk
0:00:18.6]} 58... Ke7 {[%clk 0:00:26.1]} 59. Rg8 {[%clk 0:00:19.1]} 1-0

[Event "*** Titled Tuesday Blitz"]
[Site "Chess.com"]
[Date "2020.02.04"]
[Round "2"]
[White "FairChess_on_YouTube"]
[Black "CrgKrishna"]
[Result "1-0"]
[WhiteElo "3040"]
[BlackElo "2473"]
[TimeControl "180+2"]
[EndTime "9:24:29 PST"]
[Termination "FairChess_on_YouTube won by resignation"]

1. d4 {[%clk 0:03:01.9]} 1... d5 {[%clk 0:02:58.6]} 2. c4 {[%clk 0:03:03.4]}
2... c6 {[%clk 0:02:59.7]} 3. Nf3 {[%clk 0:03:00.9]} 3... Nf6 {[%clk 0:03:00.1]}
4. e3 {[%clk 0:03:01.8]} 4... Bf5 {[%clk 0:03:00.7]} 5. Nc3 {[%clk 0:03:01.8]}
5... a6 {[%clk 0:03:01.6]} 6. Nh4 {[%clk 0:02:52.1]} 6... Bc8 {[%clk 0:03:01]}
7. Nf3 {[%clk 0:02:51]} 7... Bf5 {[%clk 0:03:01.2]} 8. Ne5 {[%clk 0:02:49.2]}
8... Nbd7 {[%clk 0:03:01.5]} 9. Qb3 {[%clk 0:02:34.5]} 9... Qc7 {[%clk
0:03:01.8]} 10. cxd5 {[%clk 0:02:33]} 10... Nxe5 {[%clk 0:03:01.9]} 11. dxe5
{[%clk 0:02:34.1]} 11... Nxd5 {[%clk 0:03:03.4]} 12. Nxd5 {[%clk 0:02:34.7]}
12... cxd5 {[%clk 0:03:05.3]} 13. Bd2 {[%clk 0:02:35.9]} 13... Qxe5 {[%clk
0:03:02.8]} 14. Rc1 {[%clk 0:02:32.2]} 14... Bd7 {[%clk 0:03:02.2]} 15. Bc3
{[%clk 0:02:15.5]} 15... Qc7 {[%clk 0:02:53.4]} 16. Qxd5 {[%clk 0:02:15.6]}
16... Bc6 {[%clk 0:02:20.4]} 17. Qg5 {[%clk 0:02:11.4]} 17... h6 {[%clk
0:02:20.2]} 18. Qg4 {[%clk 0:02:06]} 18... e6 {[%clk 0:02:02.3]} 19. Be2 {[%clk
0:02:06.6]} 19... h5 {[%clk 0:01:43.6]} 20. Qh3 {[%clk 0:02:07]} 20... Rh6
{[%clk 0:01:31.4]} 21. O-O {[%clk 0:02:04]} 21... g5 {[%clk 0:01:31.2]} 22. Rfd1
{[%clk 0:01:27.4]} 22... g4 {[%clk 0:01:26.6]} 23. Qg3 {[%clk 0:01:27.2]} 23...
Qxg3 {[%clk 0:01:27]} 24. hxg3 {[%clk 0:01:29.1]} 24... f5 {[%clk 0:01:26.8]}
25. Be5 {[%clk 0:01:27.6]} 25... h4 {[%clk 0:01:22.9]} 26. gxh4 {[%clk 0:01:00]}
26... Rxh4 {[%clk 0:01:24.7]} 27. Bf1 {[%clk 0:01:00.7]} 27... Be7 {[%clk
0:01:17.2]} 28. Rxc6 {[%clk 0:00:47.2]} 28... bxc6 {[%clk 0:01:17.7]} 29. g3
{[%clk 0:00:48.8]} 29... Rh6 {[%clk 0:01:03.8]} 30. Rc1 {[%clk 0:00:49.8]} 30...
Kd7 {[%clk 0:00:59]} 31. Rd1+ {[%clk 0:00:47.7]} 31... Ke8 {[%clk 0:00:59.5]}
32. Bg2 {[%clk 0:00:32.8]} 32... Rc8 {[%clk 0:00:59.3]} 33. Rc1 {[%clk
0:00:33.8]} 33... Kd7 {[%clk 0:01:00.1]} 34. Rd1+ {[%clk 0:00:33.7]} 34... Ke8
{[%clk 0:01:01]} 35. Rc1 {[%clk 0:00:35.2]} 35... Kd7 {[%clk 0:01:01.6]} 36. e4
{[%clk 0:00:24.7]} 36... Bf6 {[%clk 0:00:53.6]} 37. Bf4 {[%clk 0:00:25.4]} 37...
Rh7 {[%clk 0:00:54.6]} 38. Rd1+ {[%clk 0:00:23.7]} 38... Ke8 {[%clk 0:00:55]}
39. exf5 {[%clk 0:00:23.5]} 39... exf5 {[%clk 0:00:55.5]} 40. Rd6 {[%clk
0:00:24.4]} 40... Bxb2 {[%clk 0:00:56.1]} 41. Bxc6+ {[%clk 0:00:25.1]} 41... Kf8
{[%clk 0:00:49.4]} 42. Bd7 {[%clk 0:00:20.1]} 42... Rc5 {[%clk 0:00:38.4]} 43.
Be3 {[%clk 0:00:21]} 43... Ra5 {[%clk 0:00:34.7]} 44. Be6 {[%clk 0:00:19.7]}
44... Rc7 {[%clk 0:00:26.6]} 45. Bb3 {[%clk 0:00:18.8]} 45... Ba3 {[%clk
0:00:19.9]} 46. Rf6+ {[%clk 0:00:16.9]} 46... Kg7 {[%clk 0:00:20.6]} 47. Bd4
{[%clk 0:00:18.1]} 47... Kh7 {[%clk 0:00:18.5]} 48. Kg2 {[%clk 0:00:18.9]} 48...
Bc5 {[%clk 0:00:18.5]} 49. Rxf5 {[%clk 0:00:18.2]} 49... Bb6 {[%clk 0:00:12.7]}
50. Bxb6 {[%clk 0:00:18.3]} 50... Rxf5 {[%clk 0:00:13]} 51. Bxc7 {[%clk
0:00:19.5]} 51... Kg7 {[%clk 0:00:14.1]} 52. Bf4 {[%clk 0:00:19.1]} 1-0